[Event "GER-ch Youth-U10 2022"]
[Site "Willingen"]
[Date "2022.06.06"]
[Round "4.21"]
[White "Dotschuweit, Erik"]
[Black "Wolf, Noah"]
[Result "1-0"]
[ECO "B27"]
[WhiteElo "1323"]
[BlackElo "1073"]
[Annotator "NA RC COMBH"]
[PlyCount "117"]
[EventDate "2022.06.05"]
[EventType "swiss"]
[EventRounds "11"]
[EventCountry "GER"]
[SourceTitle "playchess.com"]
[Source "ChessBase"]
[SourceQuality "1"]
[TimeControl "40/4500+30:900+30"]

1. e4 {[%emt 0:00:04]} c5 {[%emt 0:00:09]} 2. Nf3 {[%emt 0:00:12]} Nc6 {[%emt 0:00:46]} 3. Bc4 {[%emt 0:00:09]} g6 {[%emt 0:00:21]} 4. O-O {[%emt 0:00:21]} Bg7 {[%emt 0:00:27]} 5. Re1 {[%emt 0:00:29]} e6 {[%emt 0:00:31]} 6. c3 {[%emt 0:02:23]} Nge7 {[%emt 0:00:24]} 7. d4 {[%emt 0:01:10]} cxd4 {[%emt 0:00:26]} 8. cxd4 {[%emt 0:00:15]} O-O {[%emt 0:00:35]} 9. d5 {[%emt 0:01:30]} Na5 {[%emt 0:04:54]} 10. Bf1 {[%emt 0:04:24]} exd5 {[%emt 0:02:20]} 11. exd5 {[%emt 0:00:37]} d6 {[%emt 0:01:47]} 12. b4 {[%emt 0:00:40]} Bxa1 {[%emt 0:00:20]} 13. bxa5 {[%emt 0:01:17]} Qxa5 {[%emt 0:00:50]} 14. Rxe7 {[%emt 0:00:41]} Qxa2 {[%emt 0:01:36]} 15. Bh6 {[%emt 0:00:38]} Rd8 {[%emt 0:01:02]} 16. Qe1 {[%emt 0:01:03]} Bf5 {[%emt 0:01:08]} 17. Nc3 {[%emt 0:00:51]} Qa5 {[%emt 0:03:39]} 18. Ne2 {[%emt 0:05:16]} Qxe1 {[%emt 0:01:31]} 19. Nxe1 {[%emt 0:00:29]} b5 {[%emt 0:03:26]} 20. Nf3 {[%emt 0:03:07]} b4 {[%emt 0:01:30]} 21. Ned4 {[%emt 0:00:46]} a5 {[%emt 0:02:50]} 22. Nc6 {[%emt 0:03:53]} Rd7 {[%emt 0:06:22]} 23. Ng5 {[%emt 0:01:31]} Bf6 {[%emt 0:01:13]} 24. Rxd7 {[%emt 0:00:53]} Bxd7 {[%emt 0:00:16]} 25. Ne4 {[%emt 0:00:26]} Bg7 {[%emt 0:04:31]} 26. Bxg7 {[%emt 0:01:25]} Kxg7 {[%emt 0:01:44]} 27. Nxd6 {[%emt 0:00:45]} b3 {[%emt 0:04:05]} 28. Nc4 {[%emt 0:01:04]} a4 {[%emt 0:00:49]} 29. Nd4 {[%emt 0:01:44]} Bf5 {[%emt 0:01:34]} 30. Nxf5+ {[%emt 0:01:02]} gxf5 {[%emt 0:00:26]} 31. Na3 {[%emt 0:01:18]} Kf6 {[%emt 0:01:37]} 32. f4 {[%emt 0:00:37]} h5 {[%emt 0:00:26]} 33. Kf2 {[%emt 0:00:44]} Ke7 {[%emt 0:00:23]} 34. Ke3 {[%emt 0:00:47]} Kd6 {[%emt 0:00:22]} 35. Kd4 {[%emt 0:00:19]} Rc8 {[%emt 0:01:24]} 36. Nc4+ {[%emt 0:00:47]} Kc7 {[%emt 0:01:20]} 37. Bd3 {[%emt 0:01:04]} Rb8 {[%emt 0:00:57]} 38. Kc3 {[%emt 0:00:22]} f6 {[%emt 0:00:46]} 39. Bxf5 {[%emt 0:00:28]} h4 {[%emt 0:00:31]} 40. d6+ {[%emt 0:01:47]} Kd8 {[%emt 0:00:31]} 41. Kb2 {[%emt 0:15:22]} Rb7 {[%emt 0:16:24]} 42. d7 {[%emt 0:02:10]} Ra7 {[%emt 0:00:55]} 43. g3 {[%emt 0:01:13]} hxg3 {[%emt 0:02:00]} 44. hxg3 {[%emt 0:00:18]} Rc7 {[%emt 0:00:47]} 45. Nd6 {[%emt 0:00:41]} Rc2+ {[%emt 0:01:20]} 46. Bxc2 {[%emt 0:01:08]} bxc2 {[%emt 0:00:15]} 47. Kxc2 {[%emt 0:00:10]} Kxd7 {[%emt 0:00:10]} 48. Nc4 {[%emt 0:00:20]} Ke6 {[%emt 0:01:10]} 49. g4 {[%emt 0:00:30]} Kd5 {[%emt 0:00:15]} 50. Kd3 {[%emt 0:00:22]} Ke6 {[%emt 0:00:32]} 51. Ne3 {[%emt 0:01:04]} Kd6 {[%emt 0:00:33]} 52. Kc4 {[%emt 0:00:24]} a3 {[%emt 0:00:39]} 53. Kb3 {[%emt 0:00:10]} Kc5 {[%emt 0:00:18]} 54. Kxa3 {[%emt 0:01:09]} Kd4 {[%emt 0:00:48]} 55. Ng2 {[%emt 0:00:26]} Ke4 {[%emt 0:01:22]} 56. Kb4 {[%emt 0:00:12]} Kf3 {[%emt 0:00:08]} 57. g5 {[%emt 0:00:14]} fxg5 {[%emt 0:00:13]} 58. fxg5 {[%emt 0:00:14]} Kxg2 {[%emt 0:00:42]} 59. g6 {[%emt 0:00:10]} 1-0

[Event "GER-ch Youth-U10 2022"]
[Site "Willingen"]
[Date "2022.06.06"]
[Round "4.22"]
[White "Leonhardt, Max"]
[Black "Hagn, Tobias"]
[Result "0-1"]
[ECO "D10"]
[WhiteElo "1114"]
[BlackElo "1337"]
[Annotator "NA RC COMBH"]
[PlyCount "104"]
[EventDate "2022.06.05"]
[EventType "swiss"]
[EventRounds "11"]
[EventCountry "GER"]
[SourceTitle "playchess.com"]
[Source "ChessBase"]
[SourceQuality "1"]
[TimeControl "40/4500+30:900+30"]

1. d4 {[%emt 0:00:01]} d5 {[%emt 0:00:10]} 2. c4 {[%emt 0:00:05]} c6 {[%emt 0:00:13]} 3. Nc3 {[%emt 0:00:06]} Nf6 {[%emt 0:00:19]} 4. Bg5 {[%emt 0:00:13]} dxc4 {[%emt 0:00:09]} 5. e4 {[%emt 0:00:21]} b5 {[%emt 0:00:21]} 6. Bxf6 {[%emt 0:00:14]} exf6 {[%emt 0:00:23]} 7. a4 {[%emt 0:00:18]} Bb4 {[%emt 0:04:52]} 8. axb5 {[%emt 0:00:35]} cxb5 {[%emt 0:00:22]} 9. Nf3 {[%emt 0:00:15]} Bg4 {[%emt 0:00:41]} 10. h3 {[%emt 0:00:11]} Bh5 {[%emt 0:00:37]} 11. Be2 {[%emt 0:01:52]} O-O {[%emt 0:01:42]} 12. O-O {[%emt 0:00:58]} Nc6 {[%emt 0:00:42]} 13. d5 {[%emt 0:00:10]} Bxf3 {[%emt 0:01:59]} 14. Bxf3 {[%emt 0:00:16]} Bxc3 {[%emt 0:02:25]} 15. bxc3 {[%emt 0:00:10]} Ne5 {[%emt 0:00:11]} 16. Rb1 {[%emt 0:01:34]} a6 {[%emt 0:01:50]} 17. Be2 {[%emt 0:00:30]} Qd6 {[%emt 0:02:11]} 18. f4 {[%emt 0:00:33]} Nd7 {[%emt 0:01:03]} 19. Kh1 {[%emt 0:00:57]} Nc5 {[%emt 0:00:56]} 20. Qd4 {[%emt 0:00:42]} Rfe8 {[%emt 0:05:32]} 21. e5 {[%emt 0:02:43]} fxe5 {[%emt 0:02:45]} 22. fxe5 {[%emt 0:00:09]} Rxe5 {[%emt 0:00:18]} 23. Qf4 {[%emt 0:00:12]} Qe7 {[%emt 0:01:32]} 24. d6 {[%emt 0:00:48]} Qf6 {[%emt 0:01:55]} 25. Qxf6 {[%emt 0:02:19]} gxf6 {[%emt 0:00:18]} 26. Bf3 {[%emt 0:00:16]} Rd8 {[%emt 0:00:45]} 27. Rbd1 {[%emt 0:00:24]} Nd3 {[%emt 0:00:53]} 28. Bg4 {[%emt 0:00:32]} Rxd6 {[%emt 0:01:29]} 29. Kh2 {[%emt 0:01:14]} a5 {[%emt 0:01:14]} 30. Kg3 {[%emt 0:01:10]} b4 {[%emt 0:01:53]} 31. cxb4 {[%emt 0:00:07]} axb4 {[%emt 0:00:20]} 32. Bc8 {[%emt 0:00:40]} c3 {[%emt 0:01:01]} 33. Ba6 {[%emt 0:00:52]} Red5 {[%emt 0:01:56]} 34. Bxd3 {[%emt 0:01:06]} Rxd3+ {[%emt 0:00:07]} 35. Rxd3 {[%emt 0:00:09]} Rxd3+ {[%emt 0:00:06]} 36. Kf2 {[%emt 0:00:43]} Rd2+ {[%emt 0:00:12]} 37. Ke3 {[%emt 0:01:53]} b3 {[%emt 0:00:52]} 38. g4 {[%emt 0:00:25]} b2 {[%emt 0:00:39]} 39. h4 {[%emt 0:00:29]} c2 {[%emt 0:00:08]} 40. Kxd2 {[%emt 0:00:08]} b1=Q {[%emt 0:00:13]} 41. Rxb1 {[%emt 0:15:20]} cxb1=Q {[%emt 0:15:14]} 42. g5 {[%emt 0:00:07]} Qb3 {[%emt 0:00:19]} 43. gxf6 {[%emt 0:00:10]} h5 {[%emt 0:00:13]} 44. Ke2 {[%emt 0:00:07]} Qc3 {[%emt 0:00:11]} 45. Kf2 {[%emt 0:00:13]} Qd3 {[%emt 0:00:06]} 46. Kg2 {[%emt 0:00:07]} Qe3 {[%emt 0:00:08]} 47. Kh1 {[%emt 0:00:06]} Qe2 {[%emt 0:00:06]} 48. Kg1 {[%emt 0:00:06]} Kh7 {[%emt 0:00:07]} 49. Kh1 {[%emt 0:00:11]} Kg6 {[%emt 0:00:05]} 50. Kg1 {[%emt 0:00:11]} Kf5 {[%emt 0:00:02]} 51. Kh1 {[%emt 0:01:43]} Kg4 {[%emt 0:00:07]} 52. Kg1 {[%emt 0:00:04]} Kh3 {[%emt 0:00:12]} 0-1

[Event "GER-ch Youth-U10 2022"]
[Site "Willingen"]
[Date "2022.06.06"]
[Round "4.23"]
[White "Yao, Haiyang"]
[Black "Wagener, Nicolas"]
[Result "0-1"]
[ECO "B23"]
[WhiteElo "1098"]
[BlackElo "1315"]
[Annotator "NA RC COMBH"]
[PlyCount "40"]
[EventDate "2022.06.05"]
[EventType "swiss"]
[EventRounds "11"]
[EventCountry "GER"]
[SourceTitle "playchess.com"]
[Source "ChessBase"]
[SourceQuality "1"]
[TimeControl "40/4500+30:900+30"]

1. e4 {[%emt 0:00:02]} c5 {[%emt 0:00:06]} 2. Nc3 {[%emt 0:00:07]} e6 {[%emt 0:00:19]} 3. g3 {[%emt 0:00:20]} a6 {[%emt 0:00:49]} 4. Bg2 {[%emt 0:00:07]} Qc7 {[%emt 0:00:35]} 5. d3 {[%emt 0:00:47]} Nf6 {[%emt 0:00:11]} 6. Nge2 {[%emt 0:00:20]} Nc6 {[%emt 0:00:29]} 7. O-O {[%emt 0:00:08]} b5 {[%emt 0:00:05]} 8. h3 {[%emt 0:00:44]} Be7 {[%emt 0:00:09]} 9. Be3 {[%emt 0:00:16]} Bb7 {[%emt 0:00:20]} 10. Qd2 {[%emt 0:00:33]} h5 {[%emt 0:00:24]} 11. f4 {[%emt 0:00:51]} O-O-O {[%emt 0:00:30]} 12. a4 {[%emt 0:00:28]} b4 {[%emt 0:01:00]} 13. Nd1 {[%emt 0:00:11]} d6 {[%emt 0:00:18]} 14. c3 {[%emt 0:00:20]} h4 {[%emt 0:00:42]} 15. cxb4 {[%emt 0:00:43]} Nxb4 {[%emt 0:00:13]} 16. e5 {[%emt 0:00:46]} Nfd5 {[%emt 0:01:45]} 17. Bxd5 {[%emt 0:01:17]} Nxd5 {[%emt 0:00:12]} 18. Ndc3 {[%emt 0:01:09]} Qc6 {[%emt 0:00:31]} 19. Rf2 {[%emt 0:00:56]} Nxe3 {[%emt 0:00:37]} 20. Qxe3 {[%emt 0:00:23]} Qh1# {[%emt 0:00:07]} 0-1

[Event "GER-ch Youth-U10 2022"]
[Site "Willingen"]
[Date "2022.06.07"]
[Round "5.1"]
[White "Nezhyvenko, Mykhaylo"]
[Black "Kateryniuk, Ivan"]
[Result "1-0"]
[ECO "C43"]
[WhiteElo "1488"]
[BlackElo "1187"]
[Annotator "NA RC COMBH"]
[PlyCount "41"]
[EventDate "2022.06.05"]
[EventType "swiss"]
[EventRounds "11"]
[EventCountry "GER"]
[SourceTitle "playchess.com"]
[Source "ChessBase"]
[SourceQuality "1"]
[TimeControl "40/4500+30:900+30"]

1. e4 {[%emt 0:00:03]} e5 {[%emt 0:00:10]} 2. Nf3 {[%emt 0:00:06]} Nf6 {[%emt 0:00:15]} 3. d4 {[%emt 0:00:10]} Nxe4 {[%emt 0:00:48]} 4. Bd3 {[%emt 0:00:11]} d5 {[%emt 0:01:40]} 5. Nxe5 {[%emt 0:00:17]} Bd6 {[%emt 0:02:10]} 6. Nc3 {[%emt 0:01:54]} Nxc3 {[%emt 0:01:18]} 7. bxc3 {[%emt 0:00:01]} Nd7 {[%emt 0:01:35]} 8. O-O {[%emt 0:01:10]} Nf6 {[%emt 0:24:33]} 9. Re1 {[%emt 0:03:11]} O-O {[%emt 0:00:12]} 10. Qf3 {[%emt 0:02:28]} Re8 {[%emt 0:12:18]} 11. Bg5 {[%emt 0:01:40]} c6 {[%emt 0:01:06]} 12. Re3 {[%emt 0:00:32]} Be7 {[%emt 0:02:37]} 13. Rae1 {[%emt 0:01:46]} Be6 {[%emt 0:01:31]} 14. Qe2 {[%emt 0:03:31]} Nd7 {[%emt 0:02:18]} 15. Nxf7 {[%emt 0:00:41]} Kxf7 {[%emt 0:10:37]} 16. Rxe6 {[%emt 0:00:16]} Nf6 {[%emt 0:05:27]} 17. Bxf6 {[%emt 0:00:26]} gxf6 {[%emt 0:02:58]} 18. Qh5+ {[%emt 0:00:02]} Kf8 {[%emt 0:00:31]} 19. Qh6+ {[%emt 0:00:00]} Kf7 {[%emt 0:01:05]} 20. Qxh7+ {[%emt 0:00:02]} Kf8 {[%emt 0:00:13]} 21. Bg6 {[%emt 0:00:01]} 1-0

[Event "GER-ch Youth-U10 2022"]
[Site "Willingen"]
[Date "2022.06.07"]
[Round "5.2"]
[White "Stehning, Toni"]
[Black "Zhang, Yibo"]
[Result "0-1"]
[ECO "C28"]
[WhiteElo "1097"]
[BlackElo "1436"]
[Annotator "NA RC COMBH"]
[PlyCount "64"]
[EventDate "2022.06.05"]
[EventType "swiss"]
[EventRounds "11"]
[EventCountry "GER"]
[SourceTitle "playchess.com"]
[Source "ChessBase"]
[SourceQuality "1"]
[TimeControl "40/4500+30:900+30"]

1. e4 {[%emt 0:00:11]} e5 {[%emt 0:00:06]} 2. Bc4 {[%emt 0:00:10]} Nc6 {[%emt 0:01:03]} 3. Nc3 {[%emt 0:00:36]} Nf6 {[%emt 0:01:13]} 4. d3 {[%emt 0:00:28]} h6 {[%emt 0:00:16]} 5. Nge2 {[%emt 0:00:37]} Bc5 {[%emt 0:01:32]} 6. h3 {[%emt 0:02:23]} d6 {[%emt 0:02:09]} 7. Na4 {[%emt 0:01:07]} Bb6 {[%emt 0:01:09]} 8. Nxb6 {[%emt 0:00:07]} axb6 {[%emt 0:00:11]} 9. Be3 {[%emt 0:00:45]} Be6 {[%emt 0:00:44]} 10. Bb5 {[%emt 0:01:03]} d5 {[%emt 0:01:54]} 11. exd5 {[%emt 0:01:57]} Qxd5 {[%emt 0:06:47]} 12. Bxc6+ {[%emt 0:01:44]} Qxc6 {[%emt 0:00:31]} 13. f3 {[%emt 0:01:15]} O-O {[%emt 0:02:59]} 14. Qd2 {[%emt 0:02:39]} Rfd8 {[%emt 0:10:02]} 15. Ng3 {[%emt 0:04:33]} Kh7 {[%emt 0:01:20]} 16. O-O {[%emt 0:11:04]} Nd5 {[%emt 0:05:47]} 17. Rfe1 {[%emt 0:02:51]} Ne7 {[%emt 0:18:08]} 18. Nh5 {[%emt 0:05:00]} Bxh3 {[%emt 0:04:40]} 19. gxh3 {[%emt 0:01:34]} Qxf3 {[%emt 0:04:07]} 20. Qe2 {[%emt 0:01:48]} Qxh3 {[%emt 0:00:46]} 21. Rf1 {[%emt 0:04:31]} Rd6 {[%emt 0:01:07]} 22. Bf2 {[%emt 0:05:33]} Nf5 {[%emt 0:03:04]} 23. Bg3 {[%emt 0:04:44]} Nxg3 {[%emt 0:01:56]} 24. Nxg3 {[%emt 0:00:35]} Qxg3+ {[%emt 0:00:01]} 25. Kh1 {[%emt 0:00:06]} Rd4 {[%emt 0:00:32]} 26. Qg2 {[%emt 0:00:43]} Qxg2+ {[%emt 0:01:04]} 27. Kxg2 {[%emt 0:00:06]} f6 {[%emt 0:00:14]} 28. a3 {[%emt 0:00:16]} Raa4 {[%emt 0:00:33]} 29. Rh1 {[%emt 0:00:38]} Rg4+ {[%emt 0:00:09]} 30. Kh3 {[%emt 0:00:58]} h5 {[%emt 0:00:28]} 31. Raf1 {[%emt 0:01:29]} Raf4 {[%emt 0:00:21]} 32. Rxf4 {[%emt 0:00:56]} exf4 {[%emt 0:00:12]} 0-1

[Event "GER-ch Youth-U10 2022"]
[Site "Willingen"]
[Date "2022.06.07"]
[Round "5.3"]
[White "Vartanian, Roman"]
[Black "Campora, Daniel H."]
[Result "1/2-1/2"]
[ECO "A85"]
[WhiteElo "1511"]
[BlackElo "2397"]
[Annotator "TA"]
[PlyCount "165"]
[EventDate "2022.06.05"]
[EventType "swiss"]
[EventRounds "11"]
[EventCountry "GER"]
[SourceTitle "playchess.com"]
[Source "ChessBase"]
[SourceQuality "1"]
[TimeControl "40/4500+30:900+30"]

{[%evp 12,165,21,24,30,15,16,-25,-16,-55,-35,-37,-33,-37,-39,-41,-40,-38,-43,-60,-54,-67,-50,-64,-48,-60,-62,-62,-62,-64,-44,-107,-67,-59,-65,-67,-41,-59,-47,-53,-29,-58,-49,-50,0,-25,-25,-45,-33,-48,-37,-50,-41,-73,-62,-147,-51,-68,0,-50,-58,-81,-59,-64,-26,-81,0,-31,7,11,33,33,34,34,60,34,74,26,73,32,36,35,47,14,20,0,37,0,11,0,67,67,89,67,74,67,118,118,102,67,118,67,114,74,116,67,121,74,74,67,67,67,75,74,74,74,74,74,74,51,74,74,74,14,14,1,180,1,1,1,1,1,1,1,1,1,1,1,1,0,1,1,1,1,1,1,1,0,0,0,0,0,0,0,0,0]} 1. Nf3 {[%emt 0:00:03]} f5 {[%emt 0:00:10]} 2. c4 {[%emt 0:00:12]} e6 {[%emt 0:00:23]} 3. e3 {[%emt 0:00:09]} Nf6 {[%emt 0:00:24][%cal Bg8f6,Bf6e4,Be4d2][%mdl 32]} 4. Nc3 {[%emt 0:00:11]} d5 {[%emt 0:00:38]} 5. d4 {[%emt 0:00:07]} c6 {[%emt 0:00:40]} 6. Qc2 {[%emt 0:00:24]} Bd6 {[%emt 0:00:35]} 7. Bd3 {[%emt 0:00:25]} O-O {[%emt 0:00:51] A85: Dutch Defence: 2 c4 Nf6 3 Nc3.} 8. a3 {[%emt 0:00:21]} Ne4 {[%emt 0:00:40]} 9. cxd5 {[%emt 0:02:39]} exd5 {[%emt 0:00:17] Black has an edge.} 10. Qb3 {[%emt 0:01:10]} Kh8 {[%emt 0:00:55]} 11. O-O {[%emt 0:02:05]} Qe7 {[%emt 0:02:52] [#]} 12. Ne2 $146 {[%emt 0:05:55]} ({Predecessor:} 12. Qd1 Rf6 13. Ne2 Rh6 14. Ng3 Qf6 15. b4 a6 16. Bb2 Nd7 17. Qe1 {½-½ (41) Schneider,M-Ludwig,I (1692) Schloss Schney 1993}) 12... Nd7 {[%emt 0:05:21][%cal Bb8d7,Bd7f6,Bf6e4][%mdl 32]} 13. Bd2 {[%emt 0:04:57]} Nxd2 {[%emt 0:02:59]} 14. Nxd2 {[%emt 0:00:20]} Nf6 {[%emt 0:00:15]} 15. Nf3 {[%emt 0:06:14]} Ne4 {[%emt 0:00:46]} 16. Rfe1 {[%emt 0:06:22]} Rb8 {[%emt 0:05:35]} 17. Rac1 {[%emt 0:01:13]} Bd7 {[%emt 0:02:02][%cal Bc8d7,Bd7e8,Be8g6][%mdl 32]} 18. Qc2 {[%emt 0:02:42]} Be8 {[%emt 0:04:57]} 19. Ng3 {[%emt 0:04:57]} Bg6 {[%emt 0:02:20]} 20. b4 {[%emt 0:01:09]} a6 {[%emt 0:01:13]} 21. Nd2 {[%emt 0:03:00]} (21. Qb2 $15) 21... Rbe8 {[%emt 0:06:34][%cal Oa6a5]} 22. f4 {[%emt 0:11:34]} Nxd2 {[%emt 0:09:01]} 23. Qxd2 {[%emt 0:00:13]} Qd7 {[%emt 0:01:00]} 24. Qc2 {[%emt 0:01:18]} h6 {[%emt 0:01:35]} 25. Re2 {[%emt 0:00:42]} Be7 {[%emt 0:02:38]} 26. Qa4 {[%emt 0:03:31]} Rc8 {[%emt 0:03:05]} 27. Ree1 {[%emt 0:01:33]} Rfe8 {[%emt 0:01:17]} (27... Ra8 $15) 28. Qb3 {[%emt 0:02:05]} Bh4 {[%emt 0:01:55]} 29. Be2 {[%emt 0:00:50]} Re7 {[%emt 0:01:31]} 30. Bf3 {[%emt 0:00:12]} Bf7 {[%emt 0:01:25]} 31. Qd3 {[%emt 0:00:36]} g6 {[%emt 0:01:19]} 32. Qc3 {[%emt 0:01:03]} Rce8 {[%emt 0:01:01]} 33. Qb3 {[%emt 0:00:11]} (33. a4 $15) 33... Rd8 {[%emt 0:00:50]} ({Black should play} 33... g5 $1 $17 {[%cal Rg5f4] And now ...gxf4 would win.} 34. Qc3 Bg6) 34. Re2 {[%emt 0:00:25]} Rde8 {[%emt 0:00:21]} (34... g5 $15 35. Rd2 gxf4 36. exf4 Qc7) 35. Nf1 {[%emt 0:00:32]} (35. Ree1 $11) 35... Bf6 $15 {[%emt 0:00:13][%cal Of6d4]} 36. Kf2 {[%emt 0:00:23]} Kg7 {[%emt 0:00:28]} 37. g3 {[%emt 0:00:15]} Qd6 {[%emt 0:00:49]} 38. Rce1 {[%emt 0:00:28]} (38. Qd3 $11) 38... Qd7 {[%emt 0:00:27]} (38... g5 $17) 39. Nd2 {[%emt 0:00:07]} h5 {[%emt 0:00:18]} 40. h4 {[%emt 0:00:18]} Ra8 {[%emt 0:00:36]} (40... a5 $5) 41. Qc3 {[%emt 0:15:42]} Qd6 {[%emt 0:15:49][%cal Oa6a5]} 42. Nb3 {[%emt 0:00:10]} b6 {[%emt 0:00:22][%cal Oa6a5]} 43. Rc1 {[%emt 0:00:34]} Rc7 {[%emt 0:00:12]} 44. Rec2 {[%emt 0:00:38]} (44. a4 $1 $16) 44... Rac8 {[%emt 0:00:16]} (44... Be7 $11 {is superior.}) 45. Qd3 {[%emt 0:00:13]} Ra8 {[%emt 0:00:14]} 46. Qd2 {[%emt 0:01:52]} Be7 {[%emt 0:00:45]} 47. Be2 {[%emt 0:00:56]} (47. Rb1 $5 {[%cal Rb3c1]}) 47... Be8 {[%emt 0:00:15]} 48. Rc3 {[%emt 0:01:08]} Kh7 {[%emt 0:01:29]} 49. R1c2 {[%emt 0:00:20]} Kg7 {[%emt 0:00:18]} 50. Nc1 {[%emt 0:00:09][%cal Bb3c1,Bc1d3,Bd3e5][%mdl 32]} Qe6 {[%emt 0:01:31]} (50... a5 $11) 51. Nd3 $14 {[%emt 0:00:28]} Bf6 {[%emt 0:01:27]} 52. Bf3 {[%emt 0:00:56]} Kh7 {[%emt 0:00:39]} 53. Ne5 {[%emt 0:00:31]} Rac8 {[%emt 0:00:51]} (53... Be7 $14) 54. Qd3 $1 $16 {[%emt 0:01:13]} b5 {[%emt 0:00:19]} 55. Qd2 {[%emt 0:00:33]} Kg7 {[%emt 0:00:16] [#]} (55... Be7 $1 $14) 56. Rc1 {[%emt 0:00:48]} (56. Rc5 $1 $16) 56... Kh7 {[%emt 0:00:20]} (56... Be7 $14) 57. R3c2 {[%emt 0:00:08]} Kg7 {[%emt 0:00:10]} 58. Qd3 {[%emt 0:00:08]} ({Better is} 58. Rc5 $16) 58... Kh7 {[%emt 0:00:27] [#]} (58... Be7 $14) 59. Qb3 {[%emt 0:00:10]} (59. Rc5 $142 $1) 59... Qd6 {[%emt 0:00:31]} 60. Qc3 {[%emt 0:00:45]} Bd8 {[%emt 0:00:39]} 61. Nd3 {[%emt 0:01:34]} Kg7 {[%emt 0:00:19]} 62. Qb3 {[%emt 0:00:12]} Kh7 {[%emt 0:00:21]} 63. Nc5 {[%emt 0:00:08]} Ra8 {[%emt 0:00:11]} 64. a4 {[%emt 0:00:15]} Kg7 {[%emt 0:00:54]} 65. Rd2 {[%emt 0:00:48]} Kh7 {[%emt 0:00:13]} 66. Ra1 {[%emt 0:00:50] Threatens to win with axb5. White is much more active.} Rca7 {[%emt 0:00:15]} 67. axb5 {[%emt 0:02:19]} (67. Rda2 $16) 67... axb5 $11 {[%emt 0:00:12]} 68. Rda2 {[%emt 0:00:19]} Qc7 $2 {[%emt 0:00:27]} (68... Rxa2+ $11 {and Black has nothing to worry.} 69. Rxa2 Rxa2+ 70. Qxa2 Bc7) 69. Qb2 $2 {[%emt 0:00:28]} ({Only move:} 69. Rxa7 $18 Rxa7 70. Ne6) 69... Bf7 {[%emt 0:00:18] The position is equal.} 70. Rxa7 {[%emt 0:01:16]} Rxa7 {[%emt 0:00:15]} 71. Ke2 {[%emt 0:00:49]} Qb8 {[%emt 0:01:09]} 72. Nd3 {[%emt 0:00:35]} Qa8 {[%emt 0:00:19]} 73. Rxa7 {[%emt 0:00:20]} Qxa7 {[%emt 0:00:05]} 74. Ne5 {[%emt 0:00:12]} Be8 {[%emt 0:00:20]} 75. Nd3 {[%emt 0:01:14]} Be7 {[%emt 0:00:36]} 76. Kd2 {[%emt 0:00:32]} Kg7 {[%emt 0:00:15]} 77. Bd1 {[%emt 0:00:31]} Bd6 {[%emt 0:00:23]} 78. Bb3 {[%emt 0:00:30]} Qa8 {[%emt 0:00:30]} 79. Qa2 {[%emt 0:00:46]} Qxa2+ {[%emt 0:00:15]} 80. Bxa2 {[%emt 0:00:09]} Kf6 {[%emt 0:00:17]} 81. Ke2 {[%emt 0:00:28]} Bd7 {[%emt 0:00:16]} 82. Kf3 {[%emt 0:00:57]} Be8 {[%emt 0:00:36]} 83. Bb3 {[%emt 0:01:57] Weighted Error Value: White=0.20 (precise) /Black=0.21 (precise)} 1/2-1/2

[Event "GER-ch Youth-U10 2022"]
[Site "Willingen"]
[Date "2022.06.07"]
[Round "5.4"]
[White "Junge, Mattheo Gabriel"]
[Black "Rohatgi, Kushagra"]
[Result "0-1"]
[ECO "B11"]
[WhiteElo "1132"]
[BlackElo "1222"]
[Annotator "NA RC COMBH"]
[PlyCount "94"]
[EventDate "2022.06.05"]
[EventType "swiss"]
[EventRounds "11"]
[EventCountry "GER"]
[SourceTitle "playchess.com"]
[Source "ChessBase"]
[SourceQuality "1"]
[TimeControl "40/4500+30:900+30"]

1. e4 {[%emt 0:00:08]} c6 {[%emt 0:00:08]} 2. Nf3 {[%emt 0:00:09]} d5 {[%emt 0:00:08]} 3. Nc3 {[%emt 0:00:06]} Bg4 {[%emt 0:00:12]} 4. h3 {[%emt 0:00:21]} Bxf3 {[%emt 0:00:26]} 5. Qxf3 {[%emt 0:00:11]} e6 {[%emt 0:00:23]} 6. Qg3 {[%emt 0:00:40]} Nf6 {[%emt 0:05:01]} 7. d3 {[%emt 0:01:40]} dxe4 {[%emt 0:12:59]} 8. dxe4 {[%emt 0:08:05]} Nbd7 {[%emt 0:03:38]} 9. Be3 {[%emt 0:01:47]} g6 {[%emt 0:04:43]} 10. O-O-O {[%emt 0:01:06]} Bg7 {[%emt 0:02:02]} 11. f4 {[%emt 0:01:55]} Qa5 {[%emt 0:07:49]} 12. f5 {[%emt 0:01:48]} exf5 {[%emt 0:07:11]} 13. exf5 {[%emt 0:01:38]} O-O-O {[%emt 0:13:54]} 14. Rd6 {[%emt 0:13:52]} Ne4 {[%emt 0:15:19]} 15. Nxe4 {[%emt 0:07:38]} Be5 {[%emt 0:00:38]} 16. Bf4 {[%emt 0:01:56]} Bxf4+ {[%emt 0:06:12]} 17. Qxf4 {[%emt 0:00:14]} Rhe8 {[%emt 0:00:58]} 18. Bc4 {[%emt 0:00:51]} Qe5 {[%emt 0:01:16]} 19. Qxe5 {[%emt 0:00:37]} Nxe5 {[%emt 0:00:24]} 20. Bb3 {[%emt 0:00:26]} gxf5 {[%emt 0:00:59]} 21. Rxd8+ {[%emt 0:00:30]} Rxd8 {[%emt 0:00:24]} 22. Rd1 {[%emt 0:00:11]} Rxd1+ {[%emt 0:00:37]} 23. Kxd1 {[%emt 0:00:04]} fxe4 {[%emt 0:00:08]} 24. Ke2 {[%emt 0:00:11]} Kd7 {[%emt 0:00:23]} 25. Ke3 {[%emt 0:00:16]} f5 {[%emt 0:00:23]} 26. c3 {[%emt 0:00:16]} Kd6 {[%emt 0:00:21]} 27. Bd1 {[%emt 0:00:34]} Nc4+ {[%emt 0:00:36]} 28. Kf4 {[%emt 0:00:22]} Nxb2 {[%emt 0:00:24]} 29. Bb3 {[%emt 0:00:11]} Nd3+ {[%emt 0:00:36]} 30. Kxf5 {[%emt 0:00:48]} Nc5 {[%emt 0:00:15]} 31. Bc4 {[%emt 0:00:36]} b5 {[%emt 0:00:42]} 32. Be2 {[%emt 0:00:19]} Na4 {[%emt 0:00:35]} 33. c4 {[%emt 0:00:13]} bxc4 {[%emt 0:00:38]} 34. Bxc4 {[%emt 0:00:11]} Nc5 {[%emt 0:00:12]} 35. g4 {[%emt 0:00:25]} a5 {[%emt 0:00:58]} 36. g5 {[%emt 0:00:22]} a4 {[%emt 0:00:45]} 37. h4 {[%emt 0:00:18]} Ke7 {[%emt 0:00:37]} 38. g6 {[%emt 0:01:57]} hxg6+ {[%emt 0:00:33]} 39. Kxg6 {[%emt 0:00:09]} Ne6 {[%emt 0:00:35]} 40. Bxe6 {[%emt 0:00:12]} Kxe6 {[%emt 0:00:07]} 41. h5 {[%emt 0:15:13]} e3 {[%emt 0:15:15]} 42. h6 {[%emt 0:00:05]} e2 {[%emt 0:00:08]} 43. h7 {[%emt 0:00:26]} e1=Q {[%emt 0:00:08]} 44. Kg7 {[%emt 0:00:27]} Qh1 {[%emt 0:00:20]} 45. Kh8 {[%emt 0:00:07]} c5 {[%emt 0:00:23]} 46. a3 {[%emt 0:00:05]} Qxh7+ {[%emt 0:00:13]} 47. Kxh7 {[%emt 0:00:07]} c4 {[%emt 0:00:06]} 0-1